fUST/lending_fUST_20240916
["ID","MTS","AMOUNT","RATE_DAILY","PERIOD"]
[338256053,1726443051320,-500.0,0.00022191,2]
[338256054,1726443051331,-500.0,0.00022191,2]
[338256055,1726443051342,-1125.04,0.00022191,2]
[338256056,1726443051352,-500.0,0.00022191,2]
[338256057,1726443051365,-500.0,0.00022191,2]
[338256058,1726443051376,-713.65,0.00022191,2]
[338256059,1726443051386,-950.88,0.00022191,2]
[338256060,1726443051396,-974.54,0.00022191,2]
[338256061,1726443051405,-704.44,0.00022191,2]
[338256062,1726443051415,-797.85,0.00022191,2]
[338256063,1726443051424,-1959.89,0.00022191,2]
[338256064,1726443051435,-500.0,0.00022191,2]
[338256065,1726443051446,-1283.45,0.00022191,2]
[338256066,1726443051458,-578.9753651,0.00022191,2]
[338256067,1726443051470,-500.0,0.00022191,2]
[338256068,1726443051481,-1564.24,0.00022191,2]
[338256069,1726443051493,-691.71,0.00022191,2]
[338256070,1726443051504,-500.0,0.00022191,2]
[338256071,1726443051516,-568.25,0.00022191,2]
[338256072,1726443051527,-2061.63,0.00022191,2]
[338256073,1726443051536,-1743.31,0.00022191,2]
[338256074,1726443051547,-616.67,0.00022191,2]
[338256075,1726443051558,-500.0,0.00022191,2]
[338256076,1726443051568,-500.0,0.00022191,2]
[338256077,1726443051579,-2082.93,0.00022191,2]
[338256078,1726443051590,-500.0,0.00022191,2]
[338256079,1726443051602,-1345.72,0.00022191,2]
[338256080,1726443051612,-500.0,0.00022191,2]
[338256081,1726443051622,-808.02,0.00022191,2]
[338256082,1726443051632,-500.0,0.00022191,2]
[338256083,1726443051642,-3980.33,0.00022191,2]
[338256084,1726443051652,-877.99,0.00022191,2]
[338256085,1726443051661,-500.0,0.00022191,2]
[338256086,1726443051671,-500.0,0.00022191,2]
[338256087,1726443051681,-2599.25,0.00022191,2]
[338256088,1726443051691,-500.0,0.00022191,2]
[338256089,1726443051701,-681.72,0.00022191,2]
[338256090,1726443051710,-4517.36,0.00022191,2]
[338256091,1726443051721,-1845.88,0.00022191,2]
[338256092,1726443051732,-575.73,0.00022191,2]
[338256093,1726443051743,-714.88,0.00022191,2]
[338256094,1726443051753,-1206.62,0.00022191,2]
[338256095,1726443051764,-500.0,0.00022191,2]
[338256096,1726443051774,-2101.84,0.00022191,2]
[338256097,1726443051784,-500.0,0.00022191,2]
[338256098,1726443051794,-500.0,0.00022191,2]
[338256099,1726443051804,-500.0,0.00022191,2]
[338256100,1726443051815,-500.0,0.00022191,2]
[338256101,1726443051824,-1619.87,0.00022191,2]
[338256102,1726443051834,-500.0,0.00022191,2]
[338256103,1726443051844,-500.0,0.00022191,2]
[338256104,1726443051856,-755.94,0.00022191,2]
[338256105,1726443051866,-500.0,0.00022191,2]
[338256106,1726443051876,-1192.49,0.00022191,2]
[338256107,1726443051886,-528.72,0.00022191,2]
[338256108,1726443051897,-1496.09,0.00022191,2]
[338256109,1726443051907,-500.0,0.00022191,2]
[338256110,1726443051918,-744.77,0.00022191,2]
[338256111,1726443051928,-500.0,0.00022191,2]
[338256112,1726443051938,-1085.58,0.00022191,2]
[338256113,1726443051948,-500.0,0.00022191,2]
[338256114,1726443051958,-500.0,0.00022191,2]
[338256115,1726443051969,-691.41,0.00022191,2]
[338256116,1726443051980,-841.16,0.00022191,2]
[338256117,1726443051991,-964.23,0.00022191,2]
[338256118,1726443052001,-500.0,0.00022191,2]
[338256119,1726443052011,-1599.16,0.00022191,2]
[338256120,1726443052022,-500.0,0.00022191,2]
[338256121,1726443052032,-500.0,0.00022191,2]
[338256122,1726443052043,-500.0,0.00022191,2]
[338256123,1726443052054,-2747.84,0.00022191,2]
[338256124,1726443052066,-3229.69,0.00022191,2]
[338256125,1726443052076,-500.0,0.00022191,2]
[338256126,1726443052086,-500.0,0.00022191,2]
[338256127,1726443052098,-500.0,0.00022191,2]
[338256128,1726443052321,-1426.03,0.00022191,2]
[338256129,1726443052331,-2187.55,0.00022191,2]
[338256130,1726443052340,-500.0,0.00022191,2]
[338256131,1726443052352,-397.75673775,0.00022191,2]
[338256132,1726443052362,-500.0,0.00022191,2]
[338256133,1726443052371,-500.0,0.00022191,2]
[338256134,1726443052383,-500.0,0.00022191,2]
[338256135,1726443052394,-4731.58,0.00022191,2]
[338256136,1726443052403,-344.14650535,0.00022191,2]
[338256137,1726443052412,-500.0,0.00022191,2]
[338256138,1726443052422,-500.0,0.00022191,2]
[338256139,1726443052432,-750.35,0.00022191,2]
[338256140,1726443052441,-563.17,0.00022191,2]
[338256141,1726443052451,-500.0,0.00022191,2]
[338256142,1726443052461,-500.0,0.00022191,2]
[338256143,1726443052471,-500.0,0.00022191,2]
[338256144,1726443052480,-500.0,0.00022191,2]
[338256145,1726443052489,-500.0,0.00022191,2]
[338256146,1726443052500,-500.0,0.00022191,2]
[338256147,1726443052509,-500.0,0.00022191,2]
[338256148,1726443052518,-676.33,0.00022191,2]
[338256149,1726443052530,-500.0,0.00022191,2]
[338256150,1726443052538,-571.90705959,0.00022191,2]
[338256151,1726443052547,-500.0,0.00022191,2]
[338256152,1726443052556,-250.0,0.00022191,2]
[338256153,1726443052567,-1141.39,0.00022191,2]
[338256154,1726443052577,-500.0,0.00022191,2]
[338256155,1726443052586,-631.98,0.00022191,2]
[338256156,1726443052595,-500.0,0.00022191,2]
[338256157,1726443052604,-695.99,0.00022191,2]
[338256158,1726443052614,-837.31,0.00022191,2]
[338256159,1726443052623,-963.46,0.00022191,2]
[338256160,1726443052632,-500.0,0.00022191,2]
[338256161,1726443052641,-877.09,0.00022191,2]
[338256162,1726443052655,-500.0,0.00022191,2]
[338256163,1726443052667,-500.0,0.00022191,2]
[338256164,1726443052675,-500.0,0.00022191,2]
[338256165,1726443052685,-500.0,0.00022191,2]
[338256166,1726443052694,-1580.18,0.00022191,2]
[338256167,1726443052703,-1507.94,0.00022191,2]
[338256168,1726443052712,-529.7698835,0.00022191,2]
[338256169,1726443052721,-611.07,0.00022191,2]
[338256170,1726443052730,-500.0,0.00022191,2]
[338256171,1726443052739,-500.0,0.00022191,2]
[338256172,1726443052749,-500.0,0.00022191,2]
[338256173,1726443052758,-500.0,0.00022191,2]
[338256174,1726443052767,-799.48,0.00022191,2]
[338256175,1726443052776,-901.88,0.00022191,2]
[338256176,1726443052788,-538.24,0.00022191,2]
[338256177,1726443052797,-1596.61,0.00022191,2]
[338256178,1726443052807,-500.0,0.00022191,2]
[338256179,1726443052817,-500.23,0.00022191,2]
[338256180,1726443052826,-500.0,0.00022191,2]
[338256181,1726443052835,-500.0,0.00022191,2]
[338256182,1726443052846,-1512.2,0.00022191,2]
[338256183,1726443052857,-1289.47,0.00022191,2]
[338256184,1726443052866,-500.0,0.00022191,2]
[338256185,1726443052876,-500.0,0.00022191,2]
[338256186,1726443052889,-500.0,0.00022191,2]
[338256187,1726443052899,-500.0,0.00022191,2]
[338256188,1726443052910,-636.16409313,0.00022191,2]
[338256189,1726443052920,-739.06,0.00022191,2]
[338256190,1726443052929,-500.0,0.00022191,2]
[338256191,1726443052939,-500.0,0.00022191,2]
[338256192,1726443052949,-2405.14,0.00022191,2]
[338256193,1726443052959,-661.79,0.00022191,2]
[338256194,1726443052970,-500.0,0.00022191,2]
[338256195,1726443052979,-500.0,0.00022191,2]
[338256196,1726443052989,-3743.7,0.00022191,2]
[338256197,1726443052998,-500.0,0.00022191,2]
[338256198,1726443053007,-500.0,0.00022191,2]
[338256199,1726443053016,-500.0,0.00022191,2]
[338256200,1726443053026,-1761.4,0.00022191,2]
[338256201,1726443053035,-5585.52,0.00022191,2]
[338256202,1726443053045,-309.47736794,0.00022191,2]
[338256203,1726443053055,-500.0,0.00022191,2]
[338256204,1726443053067,-951.72,0.00022191,2]
[338256205,1726443053075,-468.73301655,0.00022191,2]
[338256206,1726443053084,-500.0,0.00022191,2]
[338256207,1726443053094,-1164.74,0.00022191,2]
[338256208,1726443053104,-518.25,0.00022191,2]
[338256209,1726443053113,-504.3671543,0.00022191,2]
[338256210,1726443053122,-500.0,0.00022191,2]
[338256211,1726443053131,-500.0,0.00022191,2]
[338256212,1726443053141,-506.53925446,0.00022191,2]
[338256213,1726443053150,-593.37278331,0.00022191,2]
[338256214,1726443053159,-500.0,0.00022191,2]
[338256215,1726443053168,-500.0,0.00022191,2]
[338256216,1726443053177,-500.0,0.00022191,2]
[338256217,1726443053186,-1322.38,0.00022191,2]
[338256218,1726443053195,-1490.08,0.00022191,2]
[338256219,1726443053205,-307.18705116,0.00022191,2]
[338256220,1726443053214,-4366.6,0.00022191,2]
[338256221,1726443053224,-500.0,0.00022191,2]
[338256222,1726443053233,-1881.88,0.00022191,2]
[338256223,1726443053242,-500.0,0.00022191,2]
[338256224,1726443053251,-500.0,0.00022191,2]
[338256225,1726443053260,-777.75,0.00022191,2]
[338256226,1726443053270,-3935.65,0.00022191,2]
[338256227,1726443053279,-500.0,0.00022191,2]
[338256228,1726443053288,-500.0,0.00022191,2]
[338256229,1726443053298,-500.0,0.00022191,2]
[338256230,1726443053307,-3054.3,0.00022191,2]
[338256231,1726443053316,-500.0,0.00022191,2]
[338256232,1726443053326,-933.47,0.00022191,2]
[338256233,1726443053335,-502.72901432,0.00022191,2]
[338256234,1726443053345,-2242.91,0.00022191,2]
[338256235,1726443053354,-4101.12,0.00022191,2]
[338256236,1726443053364,-590.54,0.00022191,2]
[338256237,1726443053373,-500.0,0.00022191,2]
[338256238,1726443053383,-500.0,0.00022191,2]
[338256239,1726443053392,-565.33,0.00022191,2]
[338256240,1726443053401,-2683.78,0.00022191,2]
[338256241,1726443053412,-1433.55,0.00022191,2]
[338256242,1726443053423,-500.0,0.00022191,2]
[338256243,1726443053432,-500.0,0.00022191,2]
[338256244,1726443053442,-685.95,0.00022191,2]
[338256245,1726443053451,-1421.62,0.00022191,2]
[338256246,1726443053460,-500.0,0.00022191,2]
[338256247,1726443053470,-500.0,0.00022191,2]
[338256248,1726443053479,-500.0,0.00022191,2]
[338256249,1726443053488,-848.21,0.00022191,2]
[338256250,1726443053499,-574.68,0.00022191,2]
[338256251,1726443053508,-5921.71,0.00022191,2]
[338256252,1726443053518,-500.0,0.00022191,2]
[338256253,1726443053527,-500.0,0.00022191,2]
[338256254,1726443053536,-259.76260865,0.00022191,2]
[338256255,1726443053545,-500.0,0.00022191,2]
[338256256,1726443053554,-3063.28,0.00022191,2]
[338256257,1726443053564,-648.87,0.00022191,2]
[338256258,1726443053573,-569.57,0.00022191,2]
[338256259,1726443053582,-500.0,0.00022191,2]
[338256260,1726443053591,-1277.61,0.00022191,2]
[338256261,1726443053601,-65605.53,0.00022191,2]
[338256262,1726443053610,-500.0,0.00022191,2]
[338256263,1726443053619,-2301.74,0.00022191,2]
[338256264,1726443053628,-642.21212557,0.00022191,2]
[338256265,1726443053637,-1345.32,0.00022191,2]
[338256266,1726443053647,-500.0,0.00022191,2]
[338256267,1726443053657,-500.0,0.00022191,2]
[338256268,1726443053665,-8657.99,0.00022191,2]
[338256269,1726443053674,-2132.31,0.00022191,2]
[338256270,1726443053683,-997.85,0.00022191,2]
[338256271,1726443053692,-500.0,0.00022191,2]
[338256272,1726443053702,-286.66509596,0.00022191,2]
[338256273,1726443053711,-500.0,0.00022191,2]
[338256274,1726443053720,-3311.23,0.00022191,2]
[338256275,1726443053729,-635.61,0.00022191,2]
[338256276,1726443053739,-5728.17,0.00022191,2]
[338256277,1726443053748,-500.0,0.00022191,2]
[338256278,1726443053757,-500.0,0.00022191,2]
[338256279,1726443053767,-557.57,0.00022191,2]
[338256280,1726443053776,-502.10194952,0.00022191,2]
[338256281,1726443053785,-876.44,0.00022191,2]
[338256282,1726443053794,-1367.68,0.00022191,2]
[338256283,1726443053803,-500.0,0.00022191,2]
[338256284,1726443053815,-500.0,0.00022191,2]
[338256285,1726443053824,-2542.26,0.00022191,2]
[338256286,1726443053833,-17688.6,0.00022191,2]
[338256287,1726443053843,-701.15,0.00022191,2]
[338256288,1726443053852,-500.0,0.00022191,2]
[338256289,1726443053861,-5331.13,0.00022191,2]
[338256290,1726443053871,-31749.43,0.00022191,2]
[338256291,1726443053880,-678.95,0.00022191,2]
[338256292,1726443053889,-1786.57,0.00022191,2]
[338256293,1726443053898,-1674.17,0.00022191,2]
[338256294,1726443053907,-503.95,0.00022191,2]
[338256295,1726443053917,-500.0,0.00022191,2]
[338256296,1726443053926,-500.0,0.00022191,2]
[338256297,1726443053935,-895.62,0.00022191,2]
[338256298,1726443053945,-3536.04,0.00022191,2]
[338256299,1726443053954,-500.0,0.00022191,2]
[338256300,1726443053963,-3838.36,0.00022191,2]
[338256301,1726443053972,-2800.08,0.00022191,2]
[338256302,1726443053981,-4003.18,0.00022191,2]
[338256303,1726443053991,-26676.37,0.00022191,2]
[338256304,1726443054000,-500.0,0.00022191,2]
[338256305,1726443054010,-500.0,0.00022191,2]
[338256306,1726443054020,-450.19569304,0.00022191,2]
[338256307,1726443054029,-3586.37,0.00022191,2]
[338256308,1726443054038,-589.57,0.00022191,2]
[338256309,1726443054047,-500.0,0.00022191,2]
[338256310,1726443054057,-500.0,0.00022191,2]
[338256311,1726443054067,-1227.38,0.00022191,2]
[338256312,1726443054077,-1833.19,0.00022191,2]
[338256313,1726443054086,-17768.56,0.00022191,2]
[338256314,1726443054095,-12757.35,0.00022191,2]
[338256315,1726443054104,-1532.67,0.00022191,2]
[338256316,1726443054114,-2226.19,0.00022191,2]
[338256317,1726443054123,-500.0,0.00022191,2]
[338256318,1726443054132,-500.0,0.00022191,2]
[338256319,1726443054142,-2230.24,0.00022191,2]
[338256320,1726443054151,-500.0,0.00022191,2]
[338256321,1726443054159,-500.0,0.00022191,2]
[338256322,1726443054169,-522.98,0.00022191,2]
[338256323,1726443054178,-1731.78,0.00022191,2]
[338256324,1726443054187,-500.0,0.00022191,2]
[338256325,1726443054197,-500.0,0.00022191,2]
[338256326,1726443054207,-540.63,0.00022191,2]
[338256327,1726443054216,-1010.06,0.00022191,2]
[338256328,1726443054225,-1114.25,0.00022191,2]
[338256329,1726443054234,-500.0,0.00022191,2]
[338256330,1726443054243,-2039.97,0.00022191,2]
[338256331,1726443054251,-1969.07,0.00022191,2]
[338256332,1726443054261,-40873.94,0.00022191,2]
[338256333,1726443054270,-500.0,0.00022191,2]
[338256334,1726443054279,-712.85,0.00022191,2]
[338256335,1726443054289,-500.0,0.00022191,2]
[338256336,1726443054298,-926.85,0.00022191,2]
[338256337,1726443054307,-500.0,0.00022191,2]
[338256338,1726443054318,-500.0,0.00022191,2]
[338256339,1726443054328,-2561.41,0.00022191,2]
[338256340,1726443054337,-1522.66,0.00022191,2]
[338256341,1726443054346,-6712.25,0.00022191,2]
[338256342,1726443054356,-500.0,0.00022191,2]
[338256343,1726443054365,-1261.94,0.00022191,2]
[338256344,1726443054374,-500.0,0.00022191,2]
[338256345,1726443054383,-500.0,0.00022191,2]
[338256346,1726443054393,-378.67,0.00022191,2]
[338256347,1726443054402,-500.0,0.00022191,2]
[338256348,1726443054412,-1619.7,0.00022191,2]
[338256349,1726443054421,-707.52,0.00022191,2]
[338256350,1726443054430,-803.74,0.00022191,2]
[338256351,1726443054439,-1294.0,0.00022191,2]
[338256352,1726443054449,-1139.89,0.00022191,2]
[338256353,1726443054458,-1547.35,0.00022191,2]
[338256354,1726443054468,-3033.19,0.00022191,2]
[338256355,1726443054478,-3466.57,0.00022191,2]
[338256356,1726443054487,-151.0,0.00022191,7]
[338256357,1726443054497,-151.0,0.00022191,7]
[338256358,1726443054508,-151.0,0.00022191,7]
[338256359,1726443054518,-1701.07,0.00022191,2]
[338256360,1726443054529,-151.0,0.00022191,7]
[338256361,1726443054538,-151.0,0.00022191,7]
[338256362,1726443054548,-151.0,0.00022191,7]
[338256363,1726443054557,-151.0,0.00022191,7]
[338256364,1726443054570,-603.55,0.00022191,2]
[338256365,1726443054579,-183.514131,0.00022191,7]
[338256366,1726443054588,-500.0,0.00022191,2]
[338256367,1726443054598,-642.86,0.00022191,2]
[338256368,1726443054608,-792.9,0.00022191,2]
[338256369,1726443054618,-2362.06,0.00022191,2]
[338256370,1726443054628,-2355.98,0.00022191,2]
[338256371,1726443054639,-1437.06,0.00022191,2]
[338256372,1726443054649,-666.21,0.00022191,2]
[338256373,1726443054659,-1078.45,0.00022191,2]
[338256374,1726443054669,-1843.92,0.00022191,2]
[338256375,1726443054679,-500.0,0.00022191,2]
[338256376,1726443054689,-1215.87,0.00022191,2]
[338256377,1726443054699,-2783.76,0.00022191,2]
[338256378,1726443054708,-546.81,0.00022191,2]
[338256379,1726443054718,-500.0,0.00022191,2]
[338256380,1726443054727,-500.0,0.00022191,2]
[338256381,1726443054737,-500.0,0.00022191,2]
[338256382,1726443054747,-500.0,0.00022191,2]
[338256383,1726443054757,-14410.57,0.00022191,2]
[338256384,1726443054766,-1023.96,0.00022191,2]
[338256385,1726443054775,-2689.14,0.00022191,2]
[338256386,1726443054785,-794.08,0.00022191,2]
[338256387,1726443054795,-4652.91,0.00022191,2]
[338256388,1726443054804,-1049.1,0.00022191,2]
[338256389,1726443054814,-500.0,0.00022191,2]
[338256390,1726443054823,-500.0,0.00022191,2]
[338256391,1726443054833,-500.0,0.00022191,2]
[338256392,1726443054843,-8382.93,0.00022191,2]
[338256393,1726443054853,-500.0,0.00022191,2]
[338256394,1726443054862,-500.0,0.00022191,2]
[338256395,1726443054872,-789.82,0.00022191,2]
[338256396,1726443054881,-707.59,0.00022191,2]
[338256397,1726443054890,-5488.08,0.00022191,2]
[338256398,1726443054900,-500.0,0.00022191,2]
[338256399,1726443054910,-2957.48,0.00022191,2]
[338256400,1726443054919,-500.0,0.00022191,2]
[338256401,1726443054930,-500.0,0.00022191,2]
[338256402,1726443054941,-500.0,0.00022191,2]
[338256403,1726443054952,-500.0,0.00022191,2]
[338256404,1726443054963,-977.67,0.00022191,2]
[338256405,1726443054972,-1034.73,0.00022191,2]
[338256406,1726443054983,-500.0,0.00022191,2]
[338256407,1726443054992,-500.0,0.00022191,2]
[338256408,1726443055002,-500.0,0.00022191,2]
[338256409,1726443055011,-500.0,0.00022191,2]
[338256410,1726443055020,-1233.85,0.00022191,2]
[338256411,1726443055030,-85751.19655114,0.00022191,2]
[338256412,1726443055543,-587.7,0.00022191,2]
[338256413,1726443055554,-1656.63564615,0.00022191,2]
[338256414,1726443055567,-1435.82286284,0.00022191,2]
[338256425,1726443417786,200.0,0.0002051,120]
[338256445,1726444151211,-300.0,0.00019896,2]
[338256446,1726444151236,-300.0,0.00019896,2]
[338256447,1726444151261,-24656.85058507,0.00019897,2]
[338256449,1726444173172,-243.14941493,0.00019897,2]
[338256474,1726444232547,-250.0,0.00020088,2]
[338256475,1726444232559,-201.8150948,0.00020098,2]
[338256476,1726444232569,-376.39316179,0.00020103,2]
[338256509,1726444238666,-323.81791502,0.00020103,2]
[338256552,1726444240563,-1427.73781319,0.00020103,2]
[338256554,1726444240574,-773.769059,0.0002025,2]
[338256556,1726444240585,-168.750002,0.00020434,2]
[338256558,1726444240595,-168.750002,0.0002053,2]
[338256560,1726444240607,-168.750002,0.00020627,2]
[338256562,1726444240618,-168.750002,0.00020724,2]
[338256564,1726444240628,-168.750002,0.00020821,2]
[338256566,1726444240638,-168.750002,0.00020918,2]
[338256568,1726444240649,-2001.9858,0.00021,2]
[338256570,1726444240658,-1548.38813486,0.00021,2]
[338256571,1726444240669,-168.750002,0.00021014,2]
[338256572,1726444240678,-168.750002,0.00021111,2]
[338256573,1726444240687,-168.750002,0.00021208,2]
[338256574,1726444240699,-168.750002,0.00021305,2]
[338256575,1726444240710,-168.750002,0.00021402,2]
[338256576,1726444240720,-168.750002,0.00021498,2]
[338256577,1726444240729,-300.0,0.00021643,2]
[338256578,1726444240740,-300.0,0.00021643,2]
[338256579,1726444240750,-153.0,0.00021644,2]
[338256580,1726444240760,-153.0,0.00021644,2]
[338256581,1726444240771,-153.0,0.00021644,2]
[338256582,1726444240781,-153.0,0.00021644,2]
[338256583,1726444240790,-153.0,0.00021644,2]
[338256584,1726444240800,-153.6548387,0.00021644,2]
[338256585,1726444240810,-5367.17488226,0.00021817,2]
[338256611,1726444243834,-6652.66031395,0.00021817,2]
[338256613,1726444243844,-3000.0,0.00021817,2]
[338256615,1726444243855,-975.17060951,0.00021817,2]
[338256617,1726444243866,-212.4530665,0.00021817,2]
[338256619,1726444243876,-413.14748083,0.00021817,2]
[338256623,1726444243901,-423.82326782,0.00021916,2]
[338256625,1726444243911,-735.65213676,0.00021917,5]
[338256627,1726444243921,-179.81963184,0.00021917,2]
[338256629,1726444243933,-500.0,0.00021917,2]
[338256631,1726444243943,-607.26,0.00021917,2]
[338256633,1726444243953,-604.59,0.00021917,2]
[338256635,1726444243963,-500.0,0.00021917,2]
[338256637,1726444243973,-500.0,0.00021917,2]
[338256639,1726444243983,-500.0,0.00021917,2]
[338256641,1726444243993,-500.0,0.00021917,2]
[338256643,1726444244004,-645.74,0.00021917,2]
[338256645,1726444244014,-877.94,0.00021917,2]
[338256647,1726444244025,-871.64,0.00021917,2]
[338256649,1726444244035,-1796.57,0.00021917,2]
[338256651,1726444244045,-500.0,0.00021917,2]
[338256654,1726444244056,-520.9,0.00021917,2]
[338256656,1726444244067,-634.06,0.00021917,2]
[338256658,1726444244078,-500.0,0.00021917,2]
[338256660,1726444244088,-500.0,0.00021917,2]
[338256663,1726444244102,-500.0,0.00021917,2]
[338256665,1726444244112,-804.82,0.00021917,2]
[338256667,1726444244125,-500.0,0.00021917,2]
[338256669,1726444244136,-1233.57,0.00021917,2]
[338256671,1726444244146,-624.91,0.00021917,2]
[338256673,1726444244156,-1106.07,0.00021917,2]
[338256675,1726444244168,-527.75,0.00021917,2]
[338256678,1726444244179,-500.0,0.00021917,2]
[338256680,1726444244190,-500.0,0.00021917,2]
[338256682,1726444244201,-692.95,0.00021917,2]
[338256684,1726444244211,-500.0,0.00021917,2]
[338256686,1726444244222,-500.0,0.00021917,2]
[338256688,1726444244233,-682.71,0.00021917,2]
[338256690,1726444244243,-500.0,0.00021917,2]
[338256692,1726444244253,-500.0,0.00021917,2]
[338256694,1726444244263,-500.0,0.00021917,2]
[338256696,1726444244272,-883.88,0.00021917,2]
[338256698,1726444244282,-500.0,0.00021917,2]
[338256701,1726444244293,-1465.89,0.00021917,2]
[338256703,1726444244303,-500.0,0.00021917,2]
[338256705,1726444244313,-500.0,0.00021917,2]
[338256707,1726444244323,-500.0,0.00021917,2]
[338256709,1726444244332,-500.0,0.00021917,2]
[338256711,1726444244342,-995.12,0.00021917,2]
[338256713,1726444244351,-500.0,0.00021917,2]
[338256715,1726444244360,-500.0,0.00021917,2]
[338256717,1726444244370,-500.0,0.00021917,2]
[338256719,1726444244379,-500.0,0.00021917,2]
[338256721,1726444244390,-500.0,0.00021917,2]
[338256723,1726444244401,-500.0,0.00021917,2]
[338256725,1726444244421,-687.83,0.00021917,2]
[338256727,1726444244433,-500.0,0.00021917,2]
[338256728,1726444244442,-509.78290016,0.00021917,2]
[338256729,1726444244453,-500.0,0.00021917,2]
[338256730,1726444244464,-500.0,0.00021917,2]
[338256731,1726444244475,-500.0,0.00021917,2]
[338256732,1726444244486,-1046.27,0.00021917,2]
[338256733,1726444244497,-250.0,0.00021917,2]
[338256734,1726444244511,-516.24,0.00021917,2]
[338256735,1726444244521,-500.0,0.00021917,2]
[338256736,1726444244531,-500.0,0.00021917,2]
[338256737,1726444244543,-500.0,0.00021917,2]
[338256738,1726444244553,-560.15,0.00021917,2]
[338256739,1726444244564,-309.91782923,0.00021917,2]
[338256854,1726444263707,179.0487246,0.00014,2]
[338256861,1726444789728,-5000.0,0.000205,2]
[338256863,1726444831775,-182.87,0.0002051,2]
[338256864,1726444831808,-300.0,0.00020899,2]
[338256865,1726444831841,-300.0,0.00020899,2]
[338256866,1726444831877,-7217.13,0.000209,2]
[338256918,1726445431658,-300.0,0.00020591,2]
[338256920,1726445431669,-300.0,0.00020591,2]
[338256922,1726445431680,-941.21344508,0.00020592,2]
[338256926,1726445431712,-315.155,0.00020592,2]
[338256928,1726445431725,-671.33001715,0.00020592,2]
[338256939,1726445437968,-515.44593031,0.00020592,2]
[338256940,1726445438074,-2414.40008246,0.00020592,2]
[338256941,1726445438086,-1938.63892331,0.00020592,2]
[338256942,1726445438098,-2381.66645294,0.00020592,2]
[338256943,1726445438124,-2840.31324716,0.00020592,2]
[338257025,1726445442740,-12881.83690159,0.00020592,2]
[338257026,1726445442750,-190.2,0.000208,2]
[338257027,1726445442759,-3782.869999,0.000209,2]
[338257028,1726445442769,-413.14748083,0.00021707,2]
[338257029,1726445442778,-1000.0,0.00021807,2]
[338257030,1726445442788,-185.8964332,0.00021807,2]
[338257031,1726445442798,-3000.0,0.00021817,2]
[338257032,1726445442807,-6652.66031395,0.00021817,2]
[338257034,1726445442817,-185.89643319,0.00021817,2]
[338257036,1726445442826,-1081.65844769,0.00021817,2]
[338257038,1726445442836,-10575.56111005,0.0002184,2]
[338257040,1726445442848,-150.0,0.00021886,2]
[338257042,1726445442857,-571.691,0.00021886,2]
[338257043,1726445442866,-181.973,0.00021886,2]
[338257044,1726445442876,-513.858,0.00021886,2]
[338257046,1726445442885,-8182.0381171,0.00021897,3]
[338257126,1726445979308,3844.38,0.00014,2]
[338257133,1726446434159,-293.56630625,0.00020628,2]
[338257136,1726446522650,28110.6173217,0.0001,2]
[338257274,1726446641746,-300.0,0.00020628,2]